bitfinex/quotes_ETHUSD_20260207
["timestamp","ask_amount","ask_price","bid_price","bid_amount"]
[1770480963779,12.73857842,2057.0,2049.8,0.05324943]
[1770480963994,0.05324943,2051.5,2049.3,0.22971238]
[1770480964301,12.48414989,2047.0,2041.1,0.4609]
[1770480964587,0.25497941,2047.1,2041.1,0.4609]
[1770480964588,12.35831807,2046.1,2041.3,0.40009843]
[1770480964917,0.25497941,2047.1,2041.4,0.69551094]
[1770480965057,0.04877097,2047.2,2041.4,0.3286804]
[1770480965255,0.02935062,2046.2,2044.6,0.02935062]
[1770480965460,0.02935062,2048.9,2046.6,0.02935062]
[1770480965657,0.02935062,2050.3,2046.0,0.02935062]
[1770480965858,0.02935062,2052.3,2048.9,0.02935062]
[1770480966103,0.25498117,2052.2,2049.9,0.02935062]
[1770480966402,0.08913056,2051.9,2051.0,0.02935062]
[1770480966714,0.25492296,2052.8,2048.2,0.28425979]
[1770480966917,12.18805857,2049.9,2042.4,0.02935062]
[1770480967066,12.18805857,2049.9,2047.2,0.02935062]
[1770480967261,6.32668813,2049.8,2046.6,0.02443375]
[1770480967589,0.0008428,2051.8,2040.7,0.02443375]
[1770480967590,12.18805857,2046.2,2040.7,0.02443375]
[1770480967793,0.25514464,2042.9,2041.0,0.31428009]
[1770480968004,0.24368464,2042.9,2040.2,0.001]
[1770480968204,11.30669459,2048.7,2041.2,0.02443375]
[1770480968496,11.30669459,2048.5,2044.0,0.02443375]
[1770480968658,0.4691193,2048.6,2046.4,0.02443375]
[1770480968859,0.4691193,2048.6,2044.7,0.02443375]
[1770480968860,11.30669459,2046.0,2044.8,0.02443375]
[1770480969059,0.087,2050.5,2046.0,0.02443375]
[1770480969418,0.02443375,2049.1,2042.3,0.25537828]
[1770480969706,0.02443375,2049.5,2042.4,0.51754547]
[1770480969876,0.02443375,2049.0,2042.4,13.45109284]
[1770480970072,0.02443375,2047.0,2042.4,13.45109284]
[1770480970293,0.02443375,2044.7,2042.4,13.43974745]
[1770480970497,0.02443375,2047.2,2046.1,0.0488675]
[1770480970804,0.41440865,2047.4,2042.3,0.25537828]
[1770480971095,0.02443375,2048.8,2044.4,0.02443375]
[1770480971265,6.32668813,2051.8,2046.9,11.86160412]
[1770480971465,0.02443375,2051.2,2049.6,0.07330125]
[1770480971664,0.02443375,2051.5,2047.0,0.34205056]
[1770480971665,1.83769322,2049.2,2047.0,0.34205056]
[1770480971902,4.87481645,2051.4,2049.7,3.28283713]
[1770480972106,6.32668813,2051.9,2049.8,11.86160412]
[1770480972416,15.59171939,2052.4,2050.8,0.02443375]
[1770480972598,15.58015164,2053.9,2051.1,11.86160412]
[1770480972761,0.02443375,2055.5,2052.4,0.6025673]
[1770480972962,0.31922315,2055.8,2051.6,0.34212736]
[1770480973202,1.46202838,2055.7,2051.7,11.86160412]
[1770480973388,1.46202838,2055.9,2051.7,12.21073081]
[1770480973691,0.02443375,2056.7,2056.0,0.55366659]
[1770480973899,1.53887182,2056.6,2055.9,0.47282471]
[1770480974093,4.85886885,2058.1,2056.8,0.02443375]
[1770480974297,0.40354057,2058.2,2041.6,0.001]
[1770480974477,0.01945289,2058.5,2056.4,0.35790461]
[1770480974674,0.10265231,2058.9,2056.0,11.86160412]
[1770480974882,0.01945289,2057.5,2050.9,11.87294951]
[1770480975070,0.01945289,2058.5,2051.1,13.81177719]
[1770480975402,0.01945289,2054.9,2051.3,11.86160412]
[1770480975700,0.01945289,2058.2,2055.5,11.86160412]
[1770480975901,0.01945289,2058.2,2055.7,11.86160412]
[1770480975902,0.01945289,2057.7,2055.7,11.86160412]
[1770480976069,1e-08,2058.9,2050.6,0.27552732]
[1770480976070,0.01945289,2057.9,2055.8,0.30939739]
[1770480976275,0.01945289,2055.3,2054.4,11.86160412]
[1770480976482,0.01945289,2057.2,2054.3,11.86160412]
[1770480976674,0.01945289,2056.7,2056.2,0.07781156]
[1770480976875,1.21403651,2059.3,2054.4,0.24498206]
[1770480976876,0.01945289,2057.8,2057.2,0.01945289]
[1770480977075,0.01457549,2062.7,2062.0,0.23899202]
[1770480977314,0.01457549,2060.1,2059.5,0.03890578]
[1770480977612,0.01457549,2062.1,2060.6,4.73561957]
[1770480977825,0.01457549,2062.1,2059.7,4.85505693]
[1770480977826,0.01457549,2064.9,2060.9,0.01457549]
[1770480977976,0.01457549,2064.4,2060.5,0.01457549]
[1770480978314,0.01457549,2064.3,2059.1,0.01457549]
[1770480978476,1.21098542,2064.5,2060.5,0.30541518]
[1770480978676,1.21098542,2064.5,2057.6,15.55140555]
[1770480978677,0.01457549,2061.9,2056.2,1.45897754]
[1770480978910,0.26873874,2064.4,2056.2,1.45897754]
[1770480978911,0.2439054,2062.3,2057.0,0.01457549]
[1770480979126,0.2439054,2062.3,2056.6,0.29104289]
[1770480979127,0.34484222,2062.3,2056.6,0.29104289]
[1770480979412,0.30649707,2062.2,2056.2,1.45897754]
[1770480979709,0.38614072,2062.6,2056.2,1.45897754]
[1770480979937,0.31864072,2062.3,2056.3,0.69520201]
[1770480980207,4.84815433,2062.7,2057.2,11.86160412]
[1770480980374,0.01457549,2061.0,2060.6,11.86160412]
[1770480980572,0.01457549,2061.2,2060.2,0.02915097]
[1770480980885,0.01457549,2061.2,2057.3,2.16291435]
[1770480980886,0.65201957,2061.8,2058.3,0.7283187]
[1770480981216,0.01457549,2064.0,2058.0,0.4373311]
[1770480981217,0.01421209,2063.0,2062.0,0.42748896]
[1770480981376,0.01457549,2063.2,2058.4,0.31894141]
[1770480981377,0.01457549,2059.1,2058.4,0.31894141]
[1770480981577,0.01457549,2059.1,2055.8,4.89058014]
[1770480981578,2e-08,2058.3,2056.3,0.21649172]
[1770480981900,2e-08,2058.3,2052.2,0.02729]
[1770480981901,0.01457549,2053.5,2050.4,1.46277244]
[1770480982208,0.01457549,2054.7,2049.9,5.51204239]
[1770480982209,0.01705819,2053.7,2050.6,4.87590813]
[1770480982410,0.01705819,2050.6,2050.2,1.31806678]
[1770480982610,11.93083601,2051.7,2048.9,6.33114849]
[1770480982912,11.93083601,2049.8,2046.8,1.22141342]
[1770480983073,0.01952839,2049.0,2046.8,1.22141342]
[1770480983273,0.01952839,2047.5,2046.8,0.78862256]
[1770480983503,0.01952839,2047.5,2046.7,1.22147365]
[1770480983709,0.01952839,2048.0,2042.2,15.66886968]
[1770480983710,0.45923042,2046.8,2042.2,15.66886968]
[1770480983923,0.45923042,2046.8,2041.6,4.89839948]
[1770480983924,0.01952839,2046.7,2041.9,1.22434987]
[1770480984101,0.01952839,2048.3,2041.9,0.27595832]
[1770480984422,0.73706081,2048.2,2044.5,0.01952839]
[1770480984585,0.2849585,2048.9,2045.8,0.01952839]
[1770480984781,0.34975982,2051.6,2044.6,0.01952839]
[1770480985009,1.46003538,2054.8,2051.8,0.25484973]
[1770480985313,0.1355088,2056.0,2051.9,0.2491254]
[1770480985513,0.1355088,2056.0,2045.6,0.03872539]
[1770480985514,0.01952839,2054.5,2045.6,0.03872539]
[1770480985730,1.23556568,2055.9,2043.2,0.01952839]
[1770480985731,0.2491254,2051.9,2049.9,0.01952839]
[1770480985936,0.01952839,2053.5,2050.0,0.35754572]
[1770480986236,1.21730111,2053.8,2050.2,0.01952839]
[1770480986393,0.01952839,2053.4,2050.4,0.01952839]
[1770480986594,1.23575264,2055.6,2053.5,0.01952839]
[1770480986796,0.01952839,2057.7,2054.7,11.86160412]
[1770480987106,0.02188503,2057.4,2054.8,0.32336161]
[1770480987304,0.02188503,2062.8,2055.5,11.86160412]
[1770480987506,0.02188503,2057.3,2055.6,12.1638306]
[1770480987718,0.02188503,2055.7,2052.7,11.86160412]
[1770480987940,0.02188503,2057.2,2050.4,0.087]
[1770480987941,0.02188503,2060.8,2056.4,11.86160412]
[1770480988117,0.02188503,2060.1,2052.8,0.59993452]
[1770480988449,0.02188503,2064.0,2055.9,0.02188503]
[1770480988720,2.26416988,2063.8,2060.6,11.86160412]
[1770480988918,2.26416988,2063.8,2057.2,3.1994412]
[1770480988919,0.02188503,2062.2,2057.2,3.1994412]
[1770480989081,1.2126533,2061.6,2057.2,15.06104532]
[1770480989285,1.2126533,2061.6,2057.2,11.86160412]
[1770480989286,0.02188503,2059.8,2057.2,11.86160412]
[1770480989584,0.02188503,2060.0,2059.9,0.02188503]
[1770480989885,1.2126533,2061.6,2057.3,0.85256039]
[1770480990111,0.02188503,2057.9,2057.3,0.2619404]
[1770480990316,0.02188503,2062.0,2061.8,0.86690072]
[1770480990617,0.02188503,2059.6,2057.6,11.86160412]
[1770480990786,1.61363287,2068.7,2054.8,5.37653359]
[1770480990787,0.08319942,2063.9,2058.6,11.86160412]
[1770480990982,0.02188503,2058.7,2053.4,0.087]
[1770480991185,0.02431847,2056.4,2056.1,0.02434922]
[1770480991381,0.02431847,2057.6,2056.1,0.02434922]
[1770480991382,0.02431847,2057.1,2056.1,0.02434922]
[1770480991611,11.93083601,2064.9,2059.0,0.02431847]
[1770480991817,0.02431847,2058.1,2055.6,3.21349276]
[1770480992017,0.02431847,2061.6,2059.1,0.09727388]
[1770480992318,0.02431847,2062.6,2059.2,0.30047654]
[1770480992515,0.02431847,2063.8,2061.6,0.02431847]
[1770480992734,0.02431847,2065.8,2059.2,0.32048327]
[1770480993011,0.02431847,2065.8,2055.4,0.02724]
[1770480993012,13.31276936,2065.7,2055.1,0.00353]
[1770480993213,11.93083601,2059.0,2051.0,0.00354]
[1770480993416,11.93083601,2058.8,2049.8,0.00354]
[1770480993635,11.93083601,2058.8,2045.8,0.09223062]
[1770480993636,11.93083601,2051.4,2045.8,0.09223062]
[1770480993787,0.02666667,2054.0,2045.0,0.17692064]
[1770480993788,0.02666667,2047.9,2045.0,0.17692064]
[1770480993983,0.02666667,2048.3,2047.7,0.02666667]
[1770480994220,0.02666667,2049.0,2043.5,5.37653359]
[1770480994425,0.02666667,2049.3,2049.0,0.02666667]
[1770480994718,0.02666667,2051.9,2045.0,0.19513575]
[1770480994719,0.02666667,2053.3,2053.2,0.11763923]
[1770480994892,0.02666667,2047.9,2045.0,0.46002]
[1770480995222,0.02666667,2046.0,2043.6,3.0]
[1770480995517,0.02666667,2051.0,2047.1,0.13333334]
[1770480995716,0.02666667,2051.0,2044.1,11.86160412]
[1770480995717,0.02736,2051.9,2048.1,0.10666668]
[1770480995920,0.13446312,2051.0,2046.2,0.35760401]
[1770480996086,0.13446312,2051.0,2045.1,3.25596942]
[1770480996087,0.02928829,2059.2,2052.2,12.67372875]
[1770480996291,0.03830056,2054.7,2052.3,13.71420709]
[1770480996486,0.08319942,2063.9,2055.6,12.67372875]
[1770480996688,0.02928829,2066.4,2059.1,12.67372875]
[1770480996929,0.02928829,2067.1,2064.0,12.67372875]
[1770480997090,0.02928829,2066.6,2064.0,12.67372875]
[1770480997396,0.25907131,2070.6,2064.3,12.67372875]
[1770480997586,0.42127114,2063.7,2061.4,10.95400818]
[1770480997788,0.26085464,2069.3,2064.4,10.95400818]
[1770480998037,0.20021097,2072.1,2070.1,9.9148076]
[1770480998189,0.26085464,2071.6,2066.0,0.00353]
[1770480998385,0.02417444,2072.6,2067.3,5.37653359]
[1770480998609,0.02417444,2071.0,2065.6,0.35067653]
[1770480998827,0.02417444,2070.9,2066.4,0.33801006]
[1770480999049,0.02417444,2071.5,2065.7,0.34968497]
[1770480999050,0.02417444,2067.8,2065.7,0.34968497]
[1770480999251,0.02417444,2069.5,2061.6,0.00354]
[1770480999424,1.44863254,2071.2,2068.3,0.04834888]
[1770480999616,1.44863254,2071.2,2064.1,1.21118162]
[1770480999617,0.02417444,2068.4,2064.2,0.00354]
[1770480999820,0.02417444,2067.0,2063.3,17.68945302]
[1770481000037,0.02417444,2068.2,2063.3,17.68945302]
[1770481000038,0.01936905,2065.4,2063.3,17.68945302]
[1770481000235,0.01936905,2070.9,2063.4,17.68945302]
[1770481000535,0.01936905,2065.3,2063.5,0.59393197]
[1770481000735,0.01936905,2067.2,2063.3,17.68945302]
[1770481000986,0.01936905,2067.5,2063.6,0.52857825]
[1770481001139,0.00968265,2065.9,2062.7,0.27480422]
[1770481001467,0.00968265,2065.9,2062.1,0.1355088]
[1770481001468,13.00968265,2065.1,2062.1,0.1355088]
[1770481001768,0.00968265,2058.4,2055.9,0.02735]
[1770481001979,0.00968265,2058.4,2051.3,10.30770632]
[1770481001980,0.00968265,2052.4,2049.2,0.25340913]
[1770481002266,0.01218828,2053.9,2050.0,17.14161431]
[1770481002431,0.01218828,2055.1,2050.0,17.14161431]
[1770481002432,0.01218828,2055.8,2052.5,0.00968265]
[1770481002634,0.01218828,2052.9,2051.6,0.15866363]
[1770481002836,0.01218828,2061.5,2051.6,0.15866363]
[1770481003097,0.01218828,2061.5,2051.7,17.49546752]
[1770481003098,0.01218828,2058.0,2051.7,17.49546752]
[1770481003382,1.05746029,2059.5,2051.5,17.11723775]
[1770481003597,0.58590916,2059.5,2057.1,0.01218828]
[1770481003771,12.37009052,2059.4,2056.6,0.02437656]
[1770481003932,12.37009052,2059.4,2055.5,0.01218828]
[1770481003933,12.11942468,2059.4,2057.1,0.01218828]
[1770481004139,0.02437656,2056.7,2053.2,0.01218828]
[1770481004336,11.82434825,2059.2,2053.2,0.01218828]
[1770481004337,0.29625948,2060.0,2056.4,0.01218828]
[1770481004568,0.01218828,2063.1,2056.4,13.30348686]
[1770481004569,0.26276563,2060.7,2056.4,13.30348686]
[1770481004771,0.01218828,2059.2,2054.0,0.01218828]
[1770481004968,0.96880823,2056.4,2053.4,4.86902327]
[1770481005157,11.82434825,2056.2,2052.1,1.46183763]
[1770481005468,11.81215997,2054.9,2049.7,0.01218828]
[1770481005670,10.08713752,2054.6,2050.0,12.79338325]
[1770481005871,0.01218828,2055.3,2050.9,1.21893615]
[1770481006075,0.01461205,2056.7,2051.2,0.01461205]
[1770481006249,0.01461205,2057.2,2051.3,12.75197087]
[1770481006250,0.01461205,2055.3,2051.3,12.75197087]
[1770481006452,0.01461205,2052.7,2050.9,1.21893615]
[1770481006761,0.01461205,2049.9,2045.2,0.01461205]
[1770481006972,0.01461205,2053.0,2048.0,0.01461205]
[1770481007141,0.01461205,2053.3,2049.3,0.01461205]
[1770481007341,0.01461205,2053.3,2048.1,0.01461205]
[1770481007342,0.01461205,2052.8,2046.8,1.2214188]
[1770481007680,0.01461205,2050.2,2046.7,0.08319942]
[1770481007842,11.81215997,2052.6,2050.1,0.01461205]
[1770481008189,0.44690236,2052.3,2050.1,0.01461205]
[1770481008395,11.81215997,2052.2,2049.5,0.01461205]
[1770481008681,11.81215997,2052.0,2048.4,0.01461205]
[1770481008995,0.27004991,2052.3,2051.4,0.01461205]
[1770481009270,0.27004991,2052.3,2050.2,0.01461205]
[1770481009271,0.0292241,2050.9,2050.6,0.01461205]
[1770481009473,0.0292241,2050.9,2049.1,0.01461205]
[1770481009474,11.81215997,2054.2,2051.2,0.01461205]
[1770481009637,0.01461205,2050.6,2049.5,0.01461205]
[1770481009841,0.65541846,2050.5,2050.2,0.01461205]
[1770481010062,0.3497489,2053.3,2051.7,0.01461205]
[1770481010366,0.3497489,2053.3,2050.6,0.01461205]
[1770481010367,4.20029766,2053.2,2050.6,0.01461205]
[1770481010567,0.07306025,2049.3,2047.8,0.01461205]
[1770481010766,0.07306025,2049.3,2045.2,0.01461205]
[1770481010767,0.50388652,2049.2,2049.1,0.01461205]
[1770481010966,0.38833008,2053.1,2050.4,0.01461205]
[1770481011246,0.38833008,2053.1,2049.2,0.01461205]
[1770481011247,0.38833008,2053.1,2049.9,0.01705861]
[1770481011365,0.2811012,2053.0,2049.3,0.01705861]
[1770481011572,0.2811012,2053.0,2047.7,0.01705861]
[1770481011573,0.01705861,2059.6,2052.6,0.01705861]
[1770481011870,0.01705861,2059.6,2051.4,0.01705861]
[1770481011871,0.11807062,2055.7,2055.6,0.01705861]
[1770481012068,0.1355088,2060.0,2057.3,0.01705861]
[1770481012069,1.69973432,2059.1,2057.3,0.01705861]
[1770481012301,0.8272772,2060.0,2057.3,12.69078736]
[1770481012611,4.85327754,2060.5,2057.3,12.69078736]
[1770481012765,5.23488565,2064.0,2057.5,12.67372875]
[1770481012965,7.75668729,2062.4,2057.7,12.67372875]
[1770481013196,7.75668729,2062.4,2060.9,0.01705861]
[1770481013497,7.75668729,2062.4,2057.5,0.01705861]
[1770481013498,0.01705861,2061.0,2058.4,12.67372875]
[1770481013700,0.01705861,2061.0,2053.5,0.01705861]
[1770481013701,0.01705861,2059.6,2058.5,0.82075917]
[1770481013902,0.01705861,2058.2,2056.6,0.67708207]
[1770481014073,0.01705861,2057.6,2055.6,0.32322988]
[1770481014271,0.34475076,2064.8,2054.5,0.087]
[1770481014477,0.67833649,2064.3,2055.6,12.67372875]
[1770481014677,4.35890138,2063.8,2058.6,12.67372875]
[1770481014895,1.2945571,2063.9,2058.7,12.96610002]
[1770481014896,5.65345848,2063.9,2058.7,12.96610002]
[1770481015198,4.98093955,2064.1,2062.1,0.01705861]
[1770481015366,0.39293619,2070.6,2062.3,12.67372875]
[1770481015565,4.42869978,2068.0,2066.9,0.25308547]
[1770481015825,0.01705861,2066.3,2060.7,0.0275]
[1770481015973,0.25308547,2064.9,2062.1,0.01705861]
[1770481016313,0.25355211,2061.1,2054.1,3.27474182]
[1770481016468,0.01705861,2062.7,2056.6,0.01705861]
[1770481016671,0.01705861,2062.7,2054.6,0.01705861]
[1770481016672,0.01705861,2059.2,2058.1,0.37312116]
[1770481016870,3.86588173,2065.2,2060.1,0.01705861]
[1770481017071,0.01705861,2067.6,2058.9,0.01705861]
[1770481017072,0.46637008,2065.5,2059.2,0.01705861]
[1770481017299,0.0275,2065.7,2060.2,0.36344772]
[1770481017529,0.0275,2065.7,2060.7,0.01705861]
[1770481017530,3.86588173,2065.6,2060.7,0.01705861]
[1770481017677,3.86588173,2065.6,2059.6,0.01705861]
[1770481017678,0.21146711,2065.5,2060.6,0.41597931]
[1770481017881,11.81215997,2065.4,2058.4,2.54113032]
[1770481018070,11.81215997,2065.4,2058.2,4.85790624]
[1770481018071,11.81215997,2063.7,2058.2,3.59012697]
[1770481018272,11.81215997,2060.9,2054.9,0.2533087]
[1770481018472,11.81215997,2055.3,2053.0,0.25409467]
[1770481018699,11.81215997,2054.9,2053.0,0.25409467]
[1770481018902,0.1355088,2053.9,2053.0,0.25409467]
[1770481019235,6.47173197,2054.9,2051.2,0.01705861]
[1770481019236,6.2173154,2054.9,2051.2,0.01705861]
[1770481019502,1.27571986,2058.3,2057.5,0.01705861]
[1770481019703,0.06823443,2055.9,2055.6,0.01132862]
[1770481019870,7.11701531,2059.2,2058.7,0.01132862]
[1770481020071,7.11701531,2059.2,2057.5,0.01705861]
[1770481020072,0.26325863,2058.1,2051.2,2.35014146]
[1770481020304,0.26325863,2058.1,2048.8,13.0]
[1770481020478,0.26325863,2058.1,2045.8,0.1355088]
[1770481020479,0.2729584,2058.1,2046.4,13.0]
[1770481020678,0.53864631,2058.0,2046.4,13.0]
[1770481020881,0.01945241,2057.2,2045.8,0.1355088]
[1770481021084,0.1355088,2049.9,2048.8,15.14051099]
[1770481021322,0.25496057,2057.1,2054.8,0.01945241]
[1770481021481,0.25496057,2057.1,2054.5,0.01945241]
[1770481021685,0.25496057,2057.1,2054.3,0.01945241]
[1770481021902,1.21652076,2055.1,2051.4,0.01945241]
[1770481022107,0.01945241,2054.7,2050.9,0.01945241]
[1770481022381,0.01945241,2054.7,2049.2,0.01945241]
[1770481022382,0.19512575,2058.5,2055.6,0.01945241]
[1770481022587,0.01945241,2060.5,2054.7,0.01945241]
[1770481022588,0.01945241,2061.1,2057.3,0.01945241]
[1770481022814,0.07780964,2056.3,2052.8,0.01945241]
[1770481023036,0.37581374,2057.4,2051.3,0.01945241]
[1770481023320,0.5443971,2057.3,2054.9,0.01945241]
[1770481023522,5.37653359,2056.1,2050.9,0.46123263]
[1770481023730,5.37653359,2056.1,2047.5,0.01945241]
[1770481023731,0.05835722,2049.0,2047.5,0.01945241]
[1770481024010,0.05835722,2049.0,2046.9,0.46123263]
[1770481024011,1.29986182,2053.4,2046.9,0.3617218]
[1770481024233,1.29986182,2053.4,2046.7,4.98832703]
[1770481024234,0.57447464,2053.3,2050.7,0.01945241]
[1770481024392,0.087,2058.0,2054.2,0.01945241]
[1770481024591,0.087,2058.0,2053.5,0.01945241]
[1770481024817,5.46353359,2061.3,2057.1,0.01945241]
[1770481025116,0.39,2069.3,2059.9,0.01945241]
[1770481025412,0.02184943,2064.0,2060.0,0.3617218]
[1770481025712,0.56984722,2063.9,2061.3,0.02184943]
[1770481025915,0.28423808,2063.8,2059.2,0.02184943]
[1770481026123,1.21382513,2059.7,2053.9,12.98996408]
[1770481026334,0.02184943,2059.3,2054.2,0.02184943]
[1770481026615,0.02184943,2062.8,2054.3,13.4949784]
[1770481026781,0.02184943,2057.4,2054.3,13.4949784]
[1770481026988,0.02184943,2062.0,2054.3,13.4949784]
[1770481026989,0.24659865,2062.7,2059.0,12.85445528]
[1770481027186,1.21382513,2064.9,2064.6,0.31214694]
[1770481027187,0.96059292,2064.9,2064.6,0.31214694]
[1770481027513,0.96059292,2064.9,2056.8,0.087]
[1770481027514,0.02184943,2059.3,2056.3,0.45984]
[1770481027690,0.02184943,2060.5,2053.9,12.98996408]
[1770481027892,0.38984778,2061.2,2054.1,12.85445528]
[1770481028092,0.02184943,2060.7,2060.6,0.02184943]
[1770481028297,0.02184943,2060.5,2054.2,0.3109974]
[1770481028499,0.02184943,2060.5,2054.1,1.21707803]
[1770481028500,0.02184943,2055.8,2054.1,1.21707803]
[1770481028702,1.42850034,2055.7,2054.1,0.98526202]
[1770481028908,1.42850034,2055.7,2053.4,1.46048866]
[1770481028909,0.02184943,2054.1,2053.4,1.46048866]
[1770481029121,0.02184943,2053.2,2050.2,0.25399487]
[1770481029321,0.07052702,2050.7,2049.6,0.18246789]
[1770481029524,0.02184943,2051.2,2045.8,0.1355088]
[1770481029699,0.02184943,2048.3,2045.8,0.1355088]
[1770481029894,0.02184943,2050.7,2045.8,0.1355088]
[1770481030197,0.02184943,2052.9,2046.8,13.65185299]
[1770481030397,0.02184943,2051.1,2050.8,4.53426194]
[1770481030642,0.02184943,2049.1,2046.7,0.08319942]
[1770481030933,0.06833267,2050.8,2046.8,0.37409372]
[1770481031131,0.02440453,2050.4,2046.8,0.82242647]
[1770481031435,0.02440453,2053.6,2046.8,0.82242647]
[1770481031436,0.02440453,2053.9,2050.6,0.02440453]
[1770481031599,0.18873407,2054.3,2050.8,11.9380685]
[1770481031795,0.02440453,2055.7,2050.8,11.9380685]
[1770481031796,0.02440453,2059.6,2056.4,0.02440453]
[1770481032113,0.02440453,2061.6,2054.4,0.02440453]
[1770481032114,15.52658594,2061.0,2058.0,0.02440453]
[1770481032428,15.52658594,2061.0,2054.4,0.11140453]
[1770481032429,4.8452042,2063.9,2059.1,0.02440453]
[1770481032634,0.02440453,2062.0,2058.1,0.3142925]
[1770481032925,0.20225934,2062.5,2059.2,0.02440453]
[1770481033235,0.31687571,2063.0,2058.4,0.7216076]
[1770481033432,1.77871168,2063.9,2059.2,0.02440453]
[1770481033725,0.02440453,2061.9,2057.0,0.02440453]
[1770481033947,1.26859911,2061.8,2059.3,0.56879224]
[1770481034240,1.26859911,2061.8,2057.2,11.96247303]
[1770481034241,0.02440453,2056.8,2054.2,10.40525733]
[1770481034410,0.02440453,2056.8,2051.5,11.9380685]
[1770481034411,0.02440453,2054.8,2051.2,8.06400171]
[1770481034616,0.02440453,2054.8,2049.9,0.1355088]
[1770481034617,0.02440453,2052.8,2051.7,0.02440452]
[1770481034797,0.02440453,2052.8,2048.1,12.81102829]
[1770481034798,0.02440453,2050.2,2046.7,0.08319942]
[1770481035135,0.02440453,2050.2,2044.6,0.02440453]
[1770481035136,12.62010626,2046.1,2042.7,0.001]
[1770481035355,0.02440453,2046.2,2041.7,0.00405849]
[1770481035356,7.02164118,2043.0,2041.7,0.00405849]
[1770481035512,1.26859911,2046.0,2041.7,0.00405849]
[1770481035513,0.57448405,2046.9,2043.0,0.0216]
[1770481035697,12.62010626,2050.4,2046.6,4.489767]
[1770481035899,0.02440453,2054.0,2050.4,11.074941]
[1770481036101,0.02440453,2054.0,2048.9,0.02440453]
[1770481036102,0.02440453,2050.5,2042.9,8.15329251]
[1770481036328,0.02440453,2050.5,2039.4,0.02440453]
[1770481036329,1.9398917,2050.4,2042.1,0.02440453]
[1770481036507,1.9398917,2050.4,2039.7,0.02440453]
[1770481036508,5.35891976,2048.4,2042.6,1.46545554]
[1770481036854,0.02440453,2053.2,2047.7,0.02440453]
[1770481036997,0.0149898,2056.0,2053.7,0.02440453]
[1770481037202,0.0149898,2056.0,2052.5,0.02440453]
[1770481037203,0.02440453,2061.8,2054.8,4.063483]
[1770481037434,0.02440453,2057.9,2055.2,12.51119606]
[1770481037630,0.02440453,2058.2,2055.5,11.9380685]
[1770481037832,0.02440453,2056.1,2055.8,8.45151347]
[1770481038136,1.243488,2053.2,2053.1,0.80045883]
[1770481038347,0.88067068,2052.0,2050.0,0.18448487]
[1770481038501,0.488803,2050.4,2049.2,0.488803]
[1770481038700,5.893917,2052.3,2047.7,0.1355088]
[1770481038902,11.482625,2057.3,2052.6,0.02440453]
[1770481039156,1.54e-06,2055.5,2051.0,1.21891485]
[1770481039352,10.948278,2054.0,2051.1,11.9380685]
[1770481039642,10.948278,2055.2,2051.8,4.87359981]
[1770481039847,1.45702765,2059.0,2055.4,0.02440453]
[1770481040001,1.45702765,2059.0,2053.1,0.02440453]
[1770481040002,4.512052,2059.2,2056.9,0.25385721]
[1770481040205,0.25315566,2058.6,2055.2,11.9380685]
[1770481040433,1.21400475,2059.3,2055.3,4.353049]
[1770481040650,15.52870508,2060.7,2054.5,0.02440453]
[1770481040651,1.88430137,2061.3,2056.3,0.02440453]
[1770481040798,2.128437,2060.3,2058.1,0.02440453]
[1770481040999,0.76262779,2061.4,2055.0,11.9380685]
[1770481041242,5.669602,2062.5,2055.7,11.9380685]
[1770481041544,1.62428154,2062.9,2055.7,11.9380685]
[1770481041545,0.25374134,2062.4,2059.2,1.79695]
[1770481041708,1.21287252,2061.3,2055.5,11.9380685]
[1770481042041,1.21287252,2061.3,2060.1,1.791221]
[1770481042341,0.02440453,2061.3,2059.0,3.31428]
[1770481042638,0.02440453,2062.9,2056.1,0.087]
[1770481042639,0.08319942,2063.9,2061.6,11.9380685]
[1770481042804,0.82304837,2063.7,2061.2,11.9380685]
[1770481043002,0.69976234,2063.8,2061.6,5.61514]
[1770481043203,0.0275,2065.7,2063.3,0.02440453]
[1770481043438,0.02440453,2063.4,2058.2,0.02440453]
[1770481043640,0.02440453,2063.4,2053.9,0.1355088]
[1770481043641,3.36262201,2058.0,2053.9,0.1355088]
[1770481043805,3.36262201,2058.0,2049.7,0.39]
[1770481043806,0.02440453,2054.0,2049.7,0.39]
[1770481044004,3.38702654,2058.0,2048.7,0.02440453]
[1770481044005,0.02440453,2053.4,2048.7,0.02440453]
[1770481044225,0.02440453,2050.5,2049.5,0.25458936]
[1770481044509,7.479214,2048.8,2045.9,4.55329912]
[1770481044709,7.479214,2048.8,2041.8,0.1355088]
[1770481044710,0.13666535,2050.6,2048.2,5.30600356]
[1770481044913,0.02440453,2053.6,2053.0,0.02440453]
[1770481044914,3.67028994,2053.6,2053.0,0.02440453]
[1770481045111,0.02440453,2057.6,2055.2,5.09454356]
[1770481045328,3.36262201,2058.0,2055.5,5.09454356]
[1770481045329,0.0244046,2058.0,2055.5,5.09454356]
[1770481045515,0.0244046,2062.0,2057.3,5.09454356]
[1770481045717,0.04880913,2062.3,2060.1,5.09454356]
[1770481045916,0.02440453,2062.6,2061.1,5.09454356]
[1770481046138,15.51417452,2062.7,2059.6,0.25353714]
[1770481046139,0.02440453,2065.4,2063.0,5.09454356]
[1770481046304,0.02440453,2063.8,2061.0,0.25206913]
[1770481046516,0.00355,2066.1,2064.3,0.02440453]
[1770481046720,0.00355,2066.1,2059.8,0.28202632]
[1770481046721,0.02440453,2065.2,2063.8,0.02440453]
[1770481046916,0.02440453,2065.2,2056.3,2.322932]
[1770481046917,0.2531929,2059.4,2056.3,2.322932]
[1770481047245,0.2531929,2059.4,2052.3,0.02440453]
[1770481047246,0.02440453,2060.5,2057.0,0.02440453]
[1770481047431,0.02440453,2060.5,2054.2,1.08318129]
[1770481047432,0.02440453,2055.6,2054.2,1.08318129]
[1770481047605,0.02440453,2054.4,2053.9,1.03471647]
[1770481047802,0.02440453,2055.4,2055.0,4.05432126]
[1770481048006,0.02440453,2052.7,2049.9,0.1355088]
[1770481048240,0.02440453,2051.8,2051.6,0.32633011]
[1770481048443,0.02440453,2051.2,2050.0,0.54731647]
[1770481048644,0.02440453,2055.3,2052.5,0.02440453]
[1770481048855,0.02440453,2057.5,2054.5,0.02440453]
[1770481049150,0.25384708,2060.5,2057.2,0.02440453]
[1770481049334,0.25384708,2060.5,2056.5,0.25305683]
[1770481049335,0.1355088,2064.1,2057.3,0.31559492]
[1770481049522,6.91969201,2065.6,2060.7,13.07612]
[1770481049523,0.02440453,2063.8,2060.7,13.07612]
[1770481049723,0.02440453,2064.2,2063.8,0.00959408]
[1770481049932,0.02440453,2064.2,2056.8,0.02440453]
[1770481049933,0.33740079,2064.1,2059.7,0.02793453]
[1770481050115,0.33740079,2064.1,2062.3,0.02440453]
[1770481050116,0.52636349,2064.1,2062.3,0.02440453]
[1770481050321,0.02440453,2062.9,2059.3,2.500765]
[1770481050534,0.02440453,2058.7,2056.9,7.501044]
[1770481050735,0.02440453,2057.3,2056.5,0.25305683]
[1770481050950,0.20934554,2058.6,2053.3,1.29251704]
[1770481050951,0.02440453,2056.0,2053.4,11.325838]